Cogmind - Beta 14 @@@ ROGUE MODE // 2024.10.19 @ 17:39:19 Player: Jahimaih Green Turtle Result: Destroyed by Y-45 Defender with Beam Rifle Performance ------------- Evolutions (1) 500 Regions Visited (3) 600 Robots Destroyed (63) 315 Value Destroyed (1813) 1813 Prototype IDs (2) 40 Alien Tech Used (0) 0 Bonus (19) 19 TOTAL SCORE: 3287 Bonus ------- High Alert Combat Kills 186 Follower Combat Kills 116 Friendly Fire -283 Cogmind --------- Core Integrity 0/400 Matter 300/300 Energy 265/265 System Corruption 1% Temperature Cool (19) Movement Walking (120) Location -9/Storage Parts ------- > --- POWER (1) -------- Improved Ion Engine > --- PROPULSION (4) --- Improved Aluminum Leg Improved Aluminum Leg Improved Aluminum Leg Improved Aluminum Leg > --- UTILITY (2) ------ Large Storage Unit Hacking Suite > --- WEAPON (2) ------- Particle Gun Katana > --- INVENTORY (15) --- Aluminum Leg Aluminum Leg Aluminum Leg Aluminum Leg Carbon-fiber Leg Improved Flight Unit Improved Flight Unit High-capacity Storage Unit High-capacity Matter Pod (200) Terrain Scanner ECM Suite Mini Grenade Launcher Mini Grenade Launcher Maul Peak State ------------ > --- POWER ------------ Improved Ion Engine > --- PROPULSION ------- Improved Aluminum Leg Improved Aluminum Leg Improved Aluminum Leg Improved Aluminum Leg > --- UTILITY ---------- Large Storage Unit Hacking Suite > --- WEAPON ----------- Beamcaster Katana > --- INVENTORY -------- Aluminum Leg Aluminum Leg Aluminum Leg Aluminum Leg Carbon-fiber Leg Improved Flight Unit Improved Flight Unit High-capacity Storage Unit High-capacity Matter Pod Terrain Scanner ECM Suite Particle Gun Mini Grenade Launcher Mini Grenade Launcher [Rating: 24] Favorites ----------- Power Ion Engine Engine Ion Engine Power Core Light Nuclear Core Propulsion Aluminum Leg Treads Light Treads Leg Aluminum Leg Utility Large Storage Unit Device Sensor Array Storage Large Storage Unit Hackware Hacking Suite Weapon Light Cannon Energy Gun Particle Gun Ballistic Cannon Light Cannon Launcher Mini Grenade Launcher Slashing Weapon Katana Build | -11 -10 -9 -9 ------- Run | Yrd Mat Mat Sto Slots Evolved 2 | . . 2 . Power . | . . . . Propulsion 2 | . . 2 . Utility . | . . . . Weapon . | . . . . Parts Attached 36 | 7 6 12 11 Power 4 | 1 . 1 2 Engine 3 | 1 . . 2 Core 1 | . . 1 . Reactor . | . . . . Propulsion 17 | 2 2 7 6 Treads 2 | . 2 . . Leg 15 | 2 . 7 6 Wheel . | . . . . Hover . | . . . . Flight . | . . . . Utility 5 | 2 2 . 1 Device 2 | 1 1 . . Storage 2 | 1 1 . . Processor . | . . . . Hackware 1 | . . . 1 Protection . | . . . . Artifact . | . . . . Weapon 10 | 2 2 4 2 Energy Gun 6 | 2 1 1 2 Energy Cannon . | . . . . Ballistic Gun . | . . . . Ballistic Cannon 1 | . 1 . . Launcher 2 | . . 2 . Special Weapon . | . . . . Impact Weapon . | . . . . Slashing Weapon 1 | . . 1 . Piercing Weapon . | . . . . Special Melee Weapon . | . . . . Unidentified Prototypes . | . . . . Parts Lost 7 | . . . 7 Power 2 | . . . 2 Propulsion 2 | . . . 2 Utility 1 | . . . 1 Weapon 2 | . . . 2 Highest Loss Streak 2 | . . . 2 To Critical Strikes . | . . . . Average Slot Usage (%) 99 | . 99 99 97 Engine 10 | . 14 8 8 Core 1 | . . 2 1 Treads 9 | . 24 . . Leg 28 | . 3 43 44 Device 9 | . 14 11 2 Storage 12 | . 14 11 11 Hackware 2 | . . . 7 Energy Gun 10 | . 20 5 3 Ballistic Cannon 5 | . 7 8 . Launcher 2 | . . 2 6 Slashing Weapon 4 | . . 4 11 Peak Build Rating 24 | 7 9 17 24 Average Rating 12 | 4 8 13 18 On Entrance 8 | . 7 9 17 Naked Turns . | . . . . Heaviest Build 34 | 15 32 32 34 Greatest Support 52 | 20 40 43 52 Greatest Overweight (x) . | . . . . Average Overweight (x) . | . . . . Largest Inventory Capacity 15 | 8 15 15 15 Average Capacity 14 | 7 14 15 15 Most Carried 15 | 7 15 15 15 Average Carried 13 | 3 13 13 13 Final Capacity 15 | 8 15 15 15 Final Carried 15 | 4 15 14 14 Class Distribution -------------------- 64% | Mutant 35% | Scavenger-Mutant Dominant Class ---------------- Mutant | -10/Materials Scavenger-Mutant | -9/Materials Scavenger-Mutant | -9/Storage Resources | -11 -10 -9 -9 ----------- Run | Yrd Mat Mat Sto Matter Collected 1116 | 270 108 282 456 Remotely . | . . . . Salvage Created 2014 | 16 362 868 768 Parts 127 | 4 26 53 44 Haulers Intercepted 5 | . 2 3 . Recyclers Shooed 1 | . . 1 . Parts Field Recycled . | . . . . Retrieved Matter . | . . . . Parts Self-Destructed . | . . . . Prevented . | . . . . Kills | -11 -10 -9 -9 ------- Run | Yrd Mat Mat Sto Combat Hostiles Destroyed 49 | . 5 20 24 Melee 15 | . . 9 6 Guns 8 | . 3 2 3 Cannons 5 | . 2 3 . AOE 21 | . . 6 15 Classes Destroyed 10 | 1 4 4 1 Tunneler 1 | 1 . . . Hauler 5 | . 2 3 . Operator 3 | . 2 . 1 Watcher 3 | . 2 1 . Swarmer 10 | . . 3 7 Grunt 25 | . 5 11 9 Brawler 1 | . . 1 . Duelist 2 | . . 1 1 Protector 1 | . . . 1 Sentry 10 | . . 4 6 Thug 2 | . . . 2 Best Kill Streak 7 | 1 2 4 7 Combat Bots Only 7 | . 2 4 7 Max Kills in Single Turn 4 | 1 1 2 4 Gunslinging . | . . . . Exploded 4 | . . 2 4 Melee 1 | . . 1 1 Uniques/NPCs Destroyed . | . . . . Combat | -11 -10 -9 -9 -------- Run | Yrd Mat Mat Sto Hostile Shots Fired 172 | . 16 53 103 Missed 60 | . 5 15 40 Damage Taken 1858 | . 127 667 1064 Core 442 | . 36 146 260 Absorbed by Shields . | . . . . Core Remaining (%) 92 | 100 85 . . Volleys Fired 90 | 2 28 30 30 Largest 2 | 2 2 2 1 Hottest 100 | 90 100 100 75 Shots Fired 143 | 4 56 52 31 Gun 81 | 4 44 23 10 Cannon 35 | . 12 23 . Launcher 27 | . . 6 21 Special . | . . . . Kinetic 35 | . 12 23 . Thermal 63 | 2 28 23 10 Explosive 27 | . . 6 21 Electromagnetic 18 | 2 16 . . Robot Hit Streak 13 | 3 7 13 7 Robot Miss Streak 4 | 1 3 4 3 Penetration Max . | . . . . Secondary Targets 1 | . 1 . . Max Gunslinging Chain 1 | . 1 . . Shots Hit Robots 127 | 3 36 51 37 Core Hits 84 | 1 18 33 32 Critical Kills . | . . . . Critical Parts Destroyed . | . . . . Critical Strikes 9 | . 1 4 4 Burn 1 | . 1 . . Sever 8 | . . 4 4 Melee Attacks 65 | . . 25 40 Impact . | . . . . Slashing 65 | . . 25 40 Piercing . | . . . . Sneak Attacks 3 | . . 2 1 Combat Hostiles . | . . . . Follow-up Attacks . | . . . . Damage Inflicted 4212 | 39 562 1603 2008 Guns 841 | 39 412 252 138 Cannons 407 | . 150 257 . Explosions 1459 | . . 356 1103 Melee 1505 | . . 738 767 Ramming . | . . . . Kinetic 407 | . 150 257 . Thermal 681 | 26 265 252 138 Explosive 1459 | . . 356 1103 Electromagnetic 160 | 13 147 . . Impact . | . . . . Slashing 1505 | . . 738 767 Piercing . | . . . . Highest Corruption 1 | . . 1 1 Average Corruption 1 | . . 1 1 Corruption Purged . | . . . . Corruption Blocked . | . . . . Effects 21 | . . 10 11 Message Errors 4 | . . 3 1 Matter Fused 3 | . . 1 2 Heat Flow Errors 2 | . . 1 1 Energy Discharges 5 | . . 2 3 Parts Fused 1 | . . 1 . Data Loss (minor) 2 | . . 1 1 Misfires 2 | . . . 2 Weapon Failures 2 | . . 1 1 Overload Shots . | . . . . Overflow Damage 59 | . 1 6 52 Projectiles 2 | . 1 1 . Explosions 45 | . . . 45 Melee 12 | . . 5 7 Knockbacks 3 | . 2 1 . Impact . | . . . . Kinetic 3 | . 2 1 . Secondary . | . . . . Self-Inflicted Damage 247 | . . 34 213 Shots 10 | . . 2 8 Rammed . | . . . . Targets Rammed . | . . . . Kicked . | . . . . Crushed . | . . . . Highest Temperature 212 | 60 195 212 164 Average Temperature 61 | 31 69 59 49 Received Heat Transfer 606 | . 75 189 342 Siege Activations . | . . . . Robots Corrupted . | . . . . Combat Hostiles . | . . . . Parts Fried . | . . . . Impact Corruptions . | . . . . Robots Melted . | . . . . Combat Hostiles . | . . . . Parts Melted 3 | . 2 . 1 Heat Transferred 1702 | 74 777 592 259 Parts Sabotaged . | . . . . Parts Stolen . | . . . . Parts Stripped . | . . . . Power Chain Reactions . | . . . . Alert | -11 -10 -9 -9 ------- Run | Yrd Mat Mat Sto Peak Influence 774 | 5 87 330 774 Initial 139 | . 3 . 139 Average 189 | . 36 121 493 Maximum Alert Level 3 | . . 1 3 Low Security (%) 68 | 100 100 86 2 Level 1 14 | . . 13 37 Level 2 10 | . . . 38 Level 3 5 | . . . 21 Level 4 . | . . . . Level 5 . | . . . . High Security . | . . . . Max Security . | . . . . Squads Dispatched 8 | . 2 1 5 Investigation 2 | . . . 2 Extermination . | . . . . Reinforcement 4 | . 2 1 1 Assault 2 | . . . 2 Garrison . | . . . . Intercept . | . . . . Searches Triggered . | . . . . Construction Impeded . | . . . . Haulers Reinforced . | . . . . Active Scanning Responses . | . . . . Cargo Convoy Interrupts . | . . . . Stealth | -11 -10 -9 -9 --------- Run | Yrd Mat Mat Sto Distress Signals 5 | . 1 3 1 Communications Jammed . | . . . . Distress Signals . | . . . . Times Spotted 73 | . 13 26 34 Peak Tracking Total 7 | . 3 5 7 Tactical Retreats 3 | . . . 3 Traps | -11 -10 -9 -9 ------- Run | Yrd Mat Mat Sto Traps Triggered 2 | . . 1 1 Indirectly . | . . . . Trap Hack Attempts . | . . . . Triggered . | . . . . Disarmed . | . . . . Reprogrammed . | . . . . Reused . | . . . . Traps Extracted . | . . . . Installed . | . . . . Triggered . | . . . . Machines | -11 -10 -9 -9 ---------- Run | Yrd Mat Mat Sto Machines Disabled 8 | . . . 8 Max in Single Turn 2 | . . . 2 Machines Repaired . | . . . . Machines Dismantled . | . . . . Machines Sabotaged . | . . . . Overloaded Fab Kills . | . . . . Hacking | -11 -10 -9 -9 --------- Run | Yrd Mat Mat Sto Machines Accessed 14 | . 4 4 6 Terminals 12 | . 3 3 6 Fabricators . | . . . . Repair Stations . | . . . . Recycling Units 1 | . 1 . . Scanalyzers 1 | . . 1 . Garrison Access . | . . . . Total Hacks 38 | . 12 11 15 Successful 10 | . 4 4 2 Failed 27 | . 8 6 13 Catastrophic 4 | . . 2 2 Database Lockouts 1 | . . 1 . Manual 20 | . 3 9 8 Terminals 35 | . 11 9 15 Fabricators . | . . . . Repair Stations . | . . . . Recycling Units 1 | . 1 . . Scanalyzers 2 | . . 2 . Garrison Access . | . . . . Terminal Hacks 8 | . 4 2 2 Robot Analysis 1 | . . 1 . Open Door 1 | . . . 1 Scanalyzer Index 1 | . . 1 . Unreport Threat 2 | . 1 . 1 Locate Traps 1 | . 1 . . Dispatch Records 1 | . 1 . . Patrol Status 1 | . 1 . . Fabricator Hacks . | . . . . Repair Station Hacks . | . . . . Recycling Unit Hacks . | . . . . Scanalyzer 2 | . . 2 . Insert Component 2 | . . 2 . Garrison Access Hacks . | . . . . Unauthorized Hacks . | . . . . Terminals . | . . . . Fabricators . | . . . . Repair Stations . | . . . . Recycling Units . | . . . . Scanalyzers . | . . . . Garrison Access . | . . . . Data Cores Recovered 1 | . 1 . . Used . | . . . . Hacking Detections 12 | . 4 3 5 Full Trace Events 1 | . . . 1 Feedback Events . | . . . . Feedback Blocked . | . . . . Robot Schematics Acquired . | . . . . Robots Built . | . . . . Authchips . | . . . . Time . | . . . . Total Robot Build Rating . | . . . . Part Schematics Acquired . | . . . . Parts Built . | . . . . Authchips . | . . . . Time . | . . . . Total Part Build Rating . | . . . . Parts Repaired . | . . . . Time . | . . . . Parts Recycled . | . . . . Recycled Matter . | . . . . Retrieved Matter . | . . . . Retrieved Components . | . . . . Parts Scanalyzed . | . . . . Part Schematics Acquired . | . . . . Parts Damaged . | . . . . Bothacking | -11 -10 -9 -9 ------------ Run | Yrd Mat Mat Sto Used RIF Installer . | . . . . Robots Hacked . | . . . . Non-combat . | . . . . Combat . | . . . . Robot Hacks Applied . | . . . . Relay Couplers Released . | . . . . Fabnet Peak Effective % . | . . . . Robots Rewired . | . . . . Allies Hacked . | . . . . Hacks Repelled . | . . . . Allies | -11 -10 -9 -9 -------- Run | Yrd Mat Mat Sto Total Allies 2 | . . . 2 Largest Group 2 | . . . 2 Highest-Rated Group 62 | . . . 62 Highest-Rated Ally 31 | . . . 31 Total Orders . | . . . . Ally Attacks 11 | . . . 11 Total Damage 209 | . . . 209 Kills 4 | . . . 4 Allies Corrupted . | . . . . Allies Melted . | . . . . Intel | -11 -10 -9 -9 ------- Run | Yrd Mat Mat Sto Robot Analysis Total 1 | . . 1 . Derelict Logs Recovered . | . . . . Drone Launches . | . . . . Drone Recoveries . | . . . . Exploration | -11 -10 -9 -9 ------------- Run | Yrd Mat Mat Sto Turns Passed 3484 | 73 1271 1190 950 Spaces Moved 1936 | 51 550 721 614 Core 16 | 16 . . . Treads 445 | . 445 . . Legs 1475 | 35 105 721 614 Wheels . | . . . . Hover . | . . . . Flight . | . . . . Fastest Speed 50 | 50 120 120 120 Average Speed 128 | 98 152 120 120 Slowest Speed 160 | 120 160 120 120 Overloaded Moves . | . . . . Propulsion Burnouts . | . . . . Robots Hopped . | . . . . Cave-ins Triggered . | . . . . Exploration Rate (%) 46 | 3 55 48 78 Regions Visited 3 Branch Regions 1 Pre-discovered Areas . | . . . . Known Exits Taken . | . . . . Unknown Exits Taken 3 | 1 1 1 . Scrap Searched . | . . . . Spaces Dug 23 | . . 6 17 Terrain Destroyed 193 | . . 42 151 Melee 12 | . . . 12 Projectile . | . . . . AOE 181 | . . 42 139 Terrain Rammed . | . . . . Walls Destroyed . | . . . . Machines Disabled . | . . . . Actions | -11 -10 -9 -9 --------- Run | Yrd Mat Mat Sto Total 2695 | 70 929 959 737 Wait 505 | . 322 151 32 Move 1933 | 50 549 720 614 Hop . | . . . . Pick Up 45 | 11 17 9 8 Fast Attach 2 | . 1 . 1 Attach 17 | 7 . 4 6 Detach . | . . . . Swap 17 | . 5 8 4 Drop 21 | . 7 12 2 Fire 90 | 2 28 30 30 Melee 65 | . . 25 40 Ram . | . . . . Kick . | . . . . Crush . | . . . . Escape Stasis . | . . . . Rewire . | . . . . Trap . | . . . . Miscellaneous . | . . . . Route ------- -11/Scrapyard -10/Materials (discovered 3 exits: *Mat / [*Min] / [*Sub]) -9/Materials (discovered 3 exits: [*Mat] / *Sto x2) -9/Storage (discovered 1 exit: [*Mat]) History --------- Turn | Location | Event 9 | -11/Scrapyard | Discovered new exit (range 13) 74 | -11/Scrapyard | Entered Materials 224 | -10/Materials | Discovered new exit (range 12) 311 | -10/Materials | Build established: Mutant 396 | -10/Materials | Discovered new exit (range 8) 1307 | -10/Materials | Discovered new exit (range 8) 1345 | -10/Materials | Entered another Materials area 1345 | -9/Materials | Evolved 2 slots: Propulsion x2 1367 | -9/Materials | Discovered new exit (range 13) 1904 | -9/Materials | Discovered new exit (range 5) 1943 | -9/Materials | Central database locked down 2071 | -9/Materials | Build established: Scavenger-Mutant 2346 | -9/Materials | Discovered new exit (range 12) 2535 | -9/Materials | Entered Storage 2668 | -9/Storage | Core integrity fell below 50% 2936 | -9/Storage | Discovered new exit (range 15) 2994 | -9/Storage | Met a pair of Derelict thieves 3065 | -9/Storage | Destroyed 7 combat bots 3114 | -9/Storage | Core integrity fell below 20% 3308 | -9/Storage | Build established: Mutant 3485 | -9/Storage | Destroyed by Y-45 Defender with Beam Rifle Last Messages --------------- 03307_ G-34 Mercenary Aluminum Leg severed. 03312_ Destroyed Heat Sink. 03315_ G-34 Mercenary destroyed. 03321_ Acquired 10 matter. 03331_ U-05 Engineer builds a Wall. 03335_ G-34 Mercenary destroyed. 03350_ K-01 Serf cleans the Transport Mainframe. 03376_ V6:AKPZXCYK6LKW MYY7O 9 03408_ Connecting with Door Terminal... >>Open(Door) Sealed Heavy Doors opened. 03411_ Connecting with Door Terminal... 03429_ W-16 Scout sends out distress signal. 03443_ Y-45 Defender destroyed. 03447_ W-16 Scout Lgt. Ion Engine severed. 03452_ Sneak attack on A-02 Transporter. 03452_ A-02 Transporter Lgt. Treads severed. 03482_ System corrupted: Particle Gun failed to cycle. Map ----- +----------------------------------------------------+ | [%[ *%= * * | | ###+##### #######+############################ | | #??##+### #?????????????????????# | | ##?? ?# """"%[""" #?????????????????????# | | """ #??"""?# """" """" #?????????????????????# | | """ ##? R" # """" """" #?????????????????????# | | """ #?? """ # """" """" ##????????????????????# | | #? # #????????????????????# | | ##/###? # =##????????????????????# | | ?# #??### ################?????????????????????# | | ## #????##?????????????????????????????????????# | | #??????????####?????????????????????????????# | | #??????????#"""????????????????????????????## | | #?????######"Y"###?????????????????????????# | | +?????# #?????????????????????????## | | #??????# #?????????????????????????# | | #??????# #?????????????????????????# [ | | #??????# """ """ #???????????????????###+### %= | | ##+#??????# """ """ #???????????????????# | | ??????????# """ """ #???????????????????# ### | | ??????????# = #???????????????????? ???# | | ??????????# **! #???????????????????# ?####+ | | ?????############+############??????##### ?# | | ###### ^ =%[ #????? ?# | | # #???? # | | # ^ @ #????? # | | # ########+######## #????? # | | """ + ####??# #??????# #???? #! | | """ # ##!!!!# #??????# ##### ##### | | """ # ## #??????# Y | | # ##!!!!#T##??????# | | # #########???????# """"" """"" | | ###### ##########??????# """"" """"" | | # # #??????# """"" """"" | | # # ######## | | # # """" / | | # # """" #########+###### """"" """"" | | ! + + """" #????# # """"" """"" | | = # # """" #????# """" + """"" """"" | | # # #????# "??"" # | | # # #????# "???"" # | | # # #????# ""???" ##"T"# ##"T"## | | ###### ####+#####????# ""??" ###### ######? | | %% # ##?###??# """" #????# #??#### | | = # [ # ## ##?# #????# #?## # | | # % ###"# ## #### ### | | ########## = | | #??????# % | | ????????# # # ####+ # #"######### | | ??????????#????# # # #???????## T# | +----------------------------------------------------+ Best States ------------- Heat Dissipation 28 Energy Generation 14 Energy Capacity 265 Matter Stores 300 Matter Capacity 300 Sight Range 16 Robot Scan Range 14 Terrain Scan Density 10 Evasion (%) 55 Recoil Reduction 2 Offensive Hacking 10 Item Schematics ----------------- None Robot Schematics ------------------ None Fabricated ------------ Nothing Alien Tech Used ----------------- None Achievements -------------- Backstab Challenges ------------ None Game ------ Seed CompositeCargoBrace Manual? 0 Play Time 00:38:59 Cumulative 29.0 hours Start 2024.10.19 @ 17:02:05 End 2024.10.19 @ 17:39:19 Sessions 1 Manual Loads 0 Difficulty Rogue Special Mode None Game No. 21 Rogue 21 Adventurer 0 Explorer 0 Win Type - Total 0 Types 0/0/0/0/0/0/0/0/0 Lore% 16 Gallery% 25 Achievement% 25 Wizard Run 0 Options --------- Layout 1 ASCII 0 Keyboard 0 Movement Mouse Keybinds 0 Fullscreen 2 Font 24/Smallcaps Map View 50x35 Zoom Use 0% Tactical HUD 1 Map Filters NONE Filters NONE Steam 1 RUN: 5dbc3269-7940-4faa-a888-25774f074910